bitfinex/quotes_SOLUSD_20251030
["timestamp","ask_amount","ask_price","bid_price","bid_amount"]
[1761866694661,4.03135312,183.79,183.78,9.34445168]
[1761866695978,4.03135312,183.79,183.78,71.04445168]
[1761866696588,4.03135312,183.79,183.78,70.34445168]
[1761866697466,4.03135312,183.79,183.78,71.04445168]
[1761866698294,4.03135312,183.79,183.78,70.34445168]
[1761866698502,4.68135312,183.79,183.78,67.14122782]
[1761866698683,4.03135312,183.79,183.78,67.14122782]
[1761866699006,4.03135312,183.79,183.78,70.34445168]
[1761866699504,4.07354583,183.79,183.78,70.34445168]
[1761866699806,4.72354583,183.79,183.78,67.14122782]
[1761866700103,4.07354583,183.79,183.78,67.14122782]
[1761866700494,8.5583963,183.79,183.76,61.7]
[1761866700690,8.5583963,183.78,183.76,61.7]
[1761866700917,8.5587332,183.77,183.76,61.7]
[1761866701286,8.55947436,183.77,183.76,61.7]
[1761866701925,8.55947436,183.77,183.74,61.7]
[1761866702097,8.55947436,183.76,183.74,61.7]
[1761866702294,7.90947436,183.75,183.72,61.7]
[1761866702493,4.07428699,183.74,183.72,70.34600525]
[1761866702814,4.07428699,183.73,183.72,67.84278139]
[1761866703911,4.07428699,183.73,183.72,71.04600525]
[1761866707001,4.07428699,183.73,183.72,70.34600525]
[1761866707604,4.07428699,183.73,183.72,71.04600525]
[1761866708017,4.07428699,183.73,183.72,70.34600525]
[1761866710306,4.06942919,183.73,183.72,70.34600525]
[1761866710820,4.06942919,183.73,183.72,71.04600525]
[1761866711393,0.65,183.78,183.72,84.65366908]
[1761866711620,7.90043328,183.77,183.74,3.20322386]
[1761866711815,4.0694211,183.76,183.74,3.20322386]
[1761866712009,4.0694211,183.75,183.74,3.20322386]
[1761866712200,4.0694211,183.75,183.74,8.64569691]
[1761866712920,4.0694211,183.75,183.74,5.44247305]
[1761866713494,4.0694211,183.75,183.74,67.14247305]
[1761866717220,4.7894211,183.75,183.74,61.7]
[1761866718818,9.78882769,183.74,183.69,67.14369244]
[1761866719001,3.20322386,183.72,183.69,61.7]
[1761866719201,4.0694211,183.71,183.69,67.14392743]
[1761866719519,4.0694211,183.7,183.69,61.7]
[1761866719717,4.7894211,183.7,183.69,61.7]
[1761866719902,4.7894211,183.7,183.67,67.14447583]
[1761866720103,4.0694211,183.69,183.68,0.66]
[1761866720323,0.72,183.73,183.68,3.86322386]
[1761866720527,4.0655309,183.72,183.69,3.20322386]
[1761866720828,4.0655309,183.71,183.69,3.20322386]
[1761866721024,4.0655309,183.7,183.69,3.20322386]
[1761866721229,4.0655309,183.7,183.67,67.80447583]
[1761866721532,0.72,183.72,183.67,67.80447583]
[1761866721708,4.06450563,183.71,183.68,3.20322386]
[1761866721903,4.06450563,183.7,183.68,3.20322386]
[1761866722227,0.72,183.72,183.68,3.20322386]
[1761866722412,4.06384593,183.71,183.69,3.20322386]
[1761866722614,4.06384593,183.7,183.69,3.20322386]
[1761866723002,4.06384593,183.7,183.69,8.64717834]
[1761866723805,0.72,183.73,183.69,8.64717834]
[1761866724000,4.06330649,183.72,183.71,3.20322386]
[1761866724224,4.06330649,183.72,183.7,3.20322386]
[1761866724436,4.06330649,183.71,183.7,3.20322386]
[1761866724628,4.06330649,183.71,183.7,8.64688199]
[1761866724931,4.06330649,183.71,183.7,9.30688199]
[1761866725101,4.06330649,183.71,183.7,6.10365813]
[1761866725304,4.06330649,183.71,183.7,71.00688199]
[1761866725911,4.06330649,183.71,183.7,70.34688199]
[1761866726332,4.06330649,183.71,183.7,61.7]
[1761866726512,4.78330649,183.71,183.7,61.7]
[1761866726913,4.06330649,183.71,183.7,61.7]
[1761866727633,4.06330649,183.71,183.7,67.14365813]
[1761866728031,4.06330649,183.71,183.7,61.7]
[1761866729631,4.77330649,183.71,183.67,67.14442085]
[1761866729819,4.77330649,183.7,183.67,67.14442085]
[1761866730012,4.06330649,183.69,183.67,67.14442085]
[1761866730342,0.71,183.7,183.67,67.14442085]
[1761866730517,4.06446154,183.69,183.67,67.14442085]
[1761866730712,0.71,183.7,183.67,67.14442085]
[1761866731030,6.11625362,183.69,183.67,61.7]
[1761866731238,4.06446193,183.68,183.67,61.7]
[1761866731544,4.77446193,183.68,183.67,61.7]
[1761866732040,6.82625362,183.68,183.67,61.7]
[1761866732711,25.36646193,183.68,183.67,61.7]
[1761866733815,24.65646193,183.68,183.67,61.7]
[1761866734020,24.65646193,183.68,183.65,67.14513373]
[1761866734231,4.06446193,183.67,183.65,69.86692542]
[1761866734432,4.06446193,183.66,183.65,69.86692542]
[1761866736846,20.592,183.68,183.65,69.86692542]
[1761866737027,4.06056947,183.67,183.65,69.86692542]
[1761866737344,20.592,183.68,183.65,69.86692542]
[1761866737563,4.06064874,183.67,183.65,69.86692542]
[1761866737839,20.592,183.68,183.65,69.86692542]
[1761866738020,4.06064874,183.67,183.65,69.86692542]
[1761866738221,20.592,183.68,183.65,69.86692542]
[1761866738516,4.06084196,183.67,183.65,69.86692542]
[1761866738719,20.592,183.68,183.65,69.86692542]
[1761866738919,4.06084156,183.67,183.65,69.86692542]
[1761866739119,20.592,183.68,183.65,69.86692542]
[1761866739419,4.06053107,183.67,183.66,2.05179169]
[1761866739620,4.06053107,183.67,183.66,64.42179169]
[1761866739822,10.49882769,183.74,183.66,64.42179169]
[1761866740038,7.87154758,183.73,183.69,2.05179169]
[1761866740315,7.87154758,183.72,183.69,2.05179169]
[1761866740517,4.06081372,183.71,183.69,2.72179169]
[1761866740732,4.06081372,183.7,183.69,2.72179169]
[1761866740938,4.06081372,183.7,183.69,64.42179169]
[1761866741534,4.06081372,183.7,183.69,69.86574617]
[1761866743345,4.06081372,183.7,183.69,69.19574617]
[1761866743552,4.06081372,183.7,183.69,67.14395448]
[1761866744943,4.06081372,183.7,183.69,69.19574617]
[1761866748936,4.06081372,183.7,183.69,69.86574617]
[1761866750546,4.06081372,183.7,183.69,67.81395448]
[1761866752962,4.06081372,183.7,183.69,67.14395448]
[1761866754487,4.06081372,183.7,183.69,67.81395448]
[1761866755971,4.06081372,183.7,183.69,67.14395448]
[1761866757412,4.07308176,183.7,183.69,67.81395448]
[1761866760496,4.07308176,183.7,183.69,69.86574617]
[1761866764926,4.07308176,183.7,183.63,26.03763274]
[1761866764927,15.99796342,183.7,183.63,26.03763274]
[1761866765224,2.05179169,183.64,183.61,5.44615019]
[1761866765381,4.07308176,183.63,183.61,5.44615019]
[1761866765583,4.07308176,183.62,183.61,6.15615019]
[1761866766309,4.07308176,183.62,183.61,0.71]
[1761866766503,4.07308176,183.62,183.61,6.15632645]
[1761866767003,4.07308176,183.62,183.61,0.71]
[1761866767303,4.07308176,183.62,183.61,11.60116043]
[1761866768215,4.07308176,183.62,183.61,6.15483398]
[1761866768395,4.77308176,183.62,183.61,5.44483398]
[1761866768605,22.05973098,183.62,183.61,5.44483398]
[1761866768778,20.34244472,183.62,183.61,5.44483398]
[1761866768983,18.29065303,183.62,183.6,0.2]
[1761866769290,24.66508176,183.61,183.6,0.2]
[1761866769501,4.07308176,183.61,183.6,0.91]
[1761866769883,4.07308176,183.61,183.6,0.2]
[1761866770091,4.07308176,183.61,183.6,5.64662309]
[1761866770888,4.07308176,183.61,183.6,0.2]
[1761866773893,4.07308176,183.61,183.6,5.64662309]
[1761866774628,4.07308176,183.61,183.6,0.2]
[1761866774791,4.07308176,183.61,183.6,0.91]
[1761866774988,4.07308176,183.61,183.6,0.2]
[1761866775801,4.74308176,183.61,183.6,0.2]
[1761866776000,4.07308176,183.61,183.6,0.2]
[1761866777615,24.66508176,183.61,183.6,0.2]
[1761866778407,24.66508176,183.61,183.6,5.64662309]
[1761866778714,24.66508176,183.61,183.6,22.02708665]
[1761866779098,24.66508176,183.61,183.6,22.70708665]
[1761866780321,24.66508176,183.61,183.6,16.58046356]
[1761866781016,37.17570114,183.61,183.6,0.2]
[1761866781313,42.62202759,183.61,183.6,0.2]
[1761866783300,41.95202759,183.61,183.6,0.2]
[1761866783910,42.62202759,183.61,183.6,0.2]
[1761866784428,50.82919435,183.61,183.6,0.2]
[1761866784721,57.24790064,183.61,183.6,0.01]
[1761866784894,53.67847957,183.61,183.6,0.01]
[1761866787126,45.47131281,183.61,183.6,0.01]
[1761866787308,46.63137461,183.61,183.6,0.01]
[1761866787902,49.8432281,183.61,183.6,0.01]
[1761866788421,46.63137461,183.61,183.6,0.01]
[1761866792435,50.2789408,183.61,183.6,0.01]
[1761866794739,25.80508731,183.61,183.6,0.01]
[1761866795040,49.6089408,183.61,183.6,0.01]
[1761866795640,29.0169408,183.61,183.6,0.01]
[1761866795840,29.5869408,183.61,183.6,0.01]
[1761866796023,29.0169408,183.61,183.6,0.01]
[1761866796848,28.99723677,183.61,183.6,0.01]
[1761866799257,17.48977161,183.61,183.6,0.73]
[1761866799563,4.05337773,183.61,183.6,0.73]
[1761866799846,24.64537773,183.61,183.6,0.73]
[1761866802046,43.09238536,183.61,183.6,0.01]
[1761866802343,43.66238536,183.61,183.6,0.01]
[1761866802534,47.31640993,183.61,183.6,0.01]
[1761866804748,46.74640993,183.61,183.6,0.01]
[1761866805561,41.30008348,183.61,183.6,0.01]
[1761866807444,46.74640993,183.61,183.6,0.01]
[1761866810053,50.30748726,183.61,183.6,0.73]
[1761866810247,20.70808348,183.61,183.6,0.73]
[1761866810663,7.7074023,183.61,183.6,0.73]
[1761866811036,24.64537773,183.61,183.6,0.73]
[1761866811243,24.64537773,183.61,183.6,6.17662309]
[1761866811462,4.05337773,183.61,183.6,9.38847658]
[1761866813335,4.05337773,183.61,183.6,71.08847658]
[1761866813863,3.21185349,183.68,183.6,84.70503431]
[1761866814154,4.07662086,183.67,183.64,5.44543672]
[1761866814343,4.07662086,183.66,183.64,5.44543672]
[1761866814660,4.07662086,183.65,183.64,5.44543672]
[1761866814827,4.07662086,183.65,183.63,67.14565814]
[1761866815031,4.07662086,183.64,183.63,67.14565814]
[1761866815657,4.07662086,183.64,183.63,67.86565814]
[1761866815859,4.07662086,183.64,183.63,71.07751163]
[1761866820742,4.07662086,183.64,183.63,62.42]
[1761866820956,7.28847435,183.64,183.63,61.7]
[1761866821350,4.07662086,183.64,183.63,62.38]
[1761866821547,4.07662086,183.64,183.63,67.82573326]
[1761866822267,20.592,183.67,183.63,84.65191991]
[1761866822459,4.0696978,183.66,183.64,0.68]
[1761866822660,4.0696978,183.65,183.64,3.89185349]
[1761866823038,4.0696978,183.65,183.64,9.33729021]
[1761866823238,9.78882769,183.73,183.64,84.65088202]
[1761866823444,7.62071425,183.72,183.68,3.21185349]
[1761866823641,4.06803463,183.71,183.69,0.68]
[1761866823866,4.06803463,183.7,183.69,3.89185349]
[1761866824745,4.06803463,183.7,183.69,9.33580797]
[1761866825867,4.06803463,183.7,183.69,6.12395448]
[1761866828473,4.06803463,183.7,183.69,9.33580797]
[1761866830090,3.21185349,183.74,183.69,9.33580797]
[1761866830288,4.05587817,183.73,183.7,0.68]
[1761866830488,4.05587817,183.72,183.7,0.68]
[1761866830686,4.05587817,183.71,183.7,6.12365813]
[1761866833073,4.05587817,183.74,183.7,6.12365813]
[1761866833278,4.05587817,183.73,183.71,0.68]
[1761866833479,4.05587817,183.72,183.71,0.68]
[1761866834205,4.05587817,183.72,183.71,3.89185349]
[1761866834893,4.0535813,183.75,183.72,5.44306553]
[1761866835103,3.21185349,183.79,183.73,3.21185349]
[1761866835399,4.05130026,183.78,183.73,3.89185349]
[1761866835705,4.05130026,183.77,183.74,0.68]
[1761866835887,4.05130026,183.76,183.74,0.68]
[1761866836085,4.05130026,183.75,183.74,0.68]
[1761866836295,4.05071919,183.75,183.74,0.68]
[1761866836599,4.0509935,183.75,183.74,0.68]
[1761866837204,4.0509935,183.76,183.74,6.1223562]
[1761866837403,4.0509935,183.75,183.74,6.1223562]
[1761866837600,4.0509935,183.76,183.74,5.4423562]
[1761866837806,3.21185349,183.77,183.74,5.4423562]
[1761866837807,4.0509935,183.75,183.74,5.4423562]
[1761866838003,4.0509935,183.76,183.74,5.4423562]
[1761866838204,3.21185349,183.78,183.75,0.68]
[1761866838499,4.04986342,183.77,183.75,62.38]
[1761866838800,4.04986342,183.76,183.75,65.59185349]
[1761866839305,0.2,183.8,183.75,84.63947253]
[1761866839506,0.2,183.8,183.76,3.89185349]
[1761866839507,4.04903063,183.79,183.76,3.89185349]
[1761866839803,0.2,183.8,183.77,0.68]
[1761866839979,4.04842826,183.79,183.77,0.68]
[1761866841089,0.2,183.8,183.77,0.68]
[1761866841288,0.2,183.8,183.78,5.44128849]
[1761866841707,4.24512806,183.8,183.79,0.68]
[1761866844206,4.24512806,183.8,183.78,5.44128849]
[1761866844207,30.38082769,183.79,183.75,61.7]
[1761866844413,3.21185349,183.77,183.74,0.68]
[1761866844583,4.04512806,183.76,183.74,0.68]
[1761866844919,3.21185349,183.77,183.74,0.68]
[1761866845088,4.04301474,183.76,183.74,0.68]
[1761866845291,3.21185349,183.77,183.74,0.68]
[1761866845608,4.04271841,183.76,183.74,0.68]
[1761866845815,3.21185349,183.77,183.74,0.68]
[1761866845986,4.04280681,183.76,183.74,6.12240795]
[1761866846187,3.21185349,183.77,183.74,6.12240795]
[1761866846389,4.04274718,183.76,183.75,0.68]
[1761866848113,4.04274718,183.76,183.73,5.44269367]
[1761866848292,7.25460067,183.75,183.73,0.68]
[1761866848491,3.21185349,183.75,183.72,67.1430251]
[1761866848693,3.21185349,183.75,183.72,67.8330251]
[1761866849213,4.04426695,183.74,183.73,0.69]
[1761866850929,6.09555329,183.74,183.73,61.7]
[1761866852414,6.09555329,183.74,183.7,61.7]
[1761866852724,2.05128634,183.71,183.7,61.7]
[1761866852902,6.09555329,183.71,183.7,61.7]
[1761866853100,6.09555329,183.71,183.68,67.1440217]
[1761866853301,6.09555329,183.7,183.68,61.7]
[1761866853524,4.04426695,183.69,183.68,62.39]
[1761866853710,4.04426695,183.69,183.68,61.7]
[1761866854518,6.09555329,183.69,183.68,61.7]
[1761866855829,4.04426695,183.69,183.68,61.7]
[1761866856799,6.09555329,183.69,183.68,61.7]
[1761866857002,4.04426695,183.69,183.68,61.7]
[1761866857326,4.04426695,183.69,183.67,61.7]
[1761866857526,2.05128634,183.7,183.68,0.69]
[1761866857728,4.05946136,183.69,183.68,0.69]
[1761866857906,4.05946136,183.69,183.67,61.7]
[1761866858106,4.05946136,183.68,183.67,62.39]
[1761866861705,4.05946136,183.68,183.67,61.7]
[1761866861706,11.55499857,183.68,183.67,61.7]
[1761866861917,32.72064165,183.68,183.64,61.7]
[1761866862225,2.05128634,183.65,183.64,61.7]
[1761866862426,6.11439078,183.65,183.64,61.7]
[1761866862608,4.06310444,183.65,183.64,61.7]
[1761866862801,4.06310444,183.65,183.64,62.39]
[1761866864627,4.06310444,183.65,183.64,61.7]
[1761866865329,4.06310444,183.65,183.64,62.39]
[1761866869933,4.06310444,183.65,183.64,61.7]
[1761866871422,4.06148223,183.65,183.64,62.39]
[1761866871931,4.06148223,183.65,183.64,67.83543672]
[1761866873325,4.06148223,183.65,183.64,67.14543672]
[1761866873516,4.06148223,183.65,183.64,62.39]
[1761866873717,4.06148223,183.65,183.64,67.83543672]
[1761866873925,20.592,183.68,183.64,67.83543672]
[1761866874210,4.06002233,183.67,183.65,2.74128634]
[1761866874524,22.64328634,183.7,183.65,2.74128634]
[1761866874730,4.05927174,183.69,183.66,0.69]
[1761866874923,4.05927174,183.68,183.66,0.69]
[1761866875115,22.64328634,183.7,183.66,0.69]
[1761866875313,4.05911388,183.69,183.66,0.69]
[1761866875524,4.05911388,183.68,183.66,0.69]
[1761866875837,22.64328634,183.7,183.67,5.44454728]
[1761866876038,4.05904312,183.69,183.67,5.44454728]
[1761866876240,4.05904312,183.68,183.67,6.13454728]
[1761866876634,4.05904312,183.68,183.67,0.69]
[1761866879535,4.05904312,183.68,183.66,61.7]
[1761866879742,6.11032946,183.67,183.66,61.7]
[1761866883453,6.11032946,183.67,183.64,67.83519061]
[1761866883629,4.05904312,183.66,183.65,0.69]
[1761866884360,4.05904312,183.66,183.65,6.13514021]
[1761866886543,4.05904312,183.66,183.65,8.18642655]
[1761866886724,20.592,183.71,183.65,21.79927708]
[1761866886921,4.0611978,183.7,183.67,2.05128634]
[1761866887142,4.0611978,183.69,183.67,2.05128634]
[1761866887332,4.0611978,183.68,183.67,63.75128634]
[1761866887847,4.0611978,183.68,183.67,68.50248414]
[1761866888554,4.0611978,183.68,183.67,73.94703142]
[1761866888761,2.05128634,183.76,183.67,87.55839963]
[1761866889064,4.06489712,183.75,183.72,2.05128634]
[1761866889265,4.06489712,183.74,183.7,2.05128634]
[1761866889436,4.06489712,183.73,183.71,0.69]
[1761866889645,6.11618346,183.72,183.68,62.39]
[1761866889847,6.11618346,183.71,183.68,16.37063108]
[1761866890171,4.06489712,183.7,183.69,0.69]
[1761866890546,4.06489712,183.7,183.69,6.13395448]
[1761866892836,4.06489712,183.7,183.69,0.69]
[1761866893038,4.06489712,183.7,183.67,17.06152446]
[1761866893347,4.06489712,183.69,183.67,0.69]
[1761866893550,4.06489712,183.68,183.67,6.13440576]
[1761866893759,4.06489712,183.68,183.67,67.83440576]
[1761866893974,6.68618346,183.68,183.67,5.44309538]
[1761866894259,10.32406995,183.68,183.65,61.7]
[1761866894446,2.05128634,183.66,183.65,61.7]
[1761866894760,9.75406995,183.66,183.62,6.13600589]
[1761866894959,6.11618346,183.65,183.62,67.83600589]
[1761866895259,4.06489712,183.64,183.62,67.83600589]
[1761866895450,4.06489712,183.63,183.62,62.39]
[1761866897354,4.06489712,183.63,183.62,67.83602984]
[1761866897752,4.06489712,183.63,183.62,62.39]
[1761866899467,4.06489712,183.63,183.62,67.83602984]
[1761866901150,4.07690986,183.63,183.62,67.83602984]
[1761866901669,4.07690986,183.63,183.62,62.39]
[1761866901845,4.07690986,183.63,183.62,67.83602984]
[1761866902857,4.07690986,183.63,183.62,62.39]
[1761866903050,4.07690986,183.63,183.62,67.83602984]
[1761866905550,4.07690986,183.63,183.62,69.88731618]
[1761866906146,4.07690986,183.63,183.62,86.26241511]
[1761866909383,4.07690986,183.63,183.62,87.41886775]
[1761866910181,3.20773898,183.69,183.62,101.03394236]
[1761866910377,4.0762437,183.68,183.64,3.20773898]
[1761866910673,4.0762437,183.67,183.65,0.7]
[1761866910895,4.0762437,183.66,183.65,62.4]
[1761866911050,4.0762437,183.66,183.65,61.7]
[1761866911251,4.07575119,183.66,183.65,61.7]
[1761866911655,4.07575119,183.66,183.65,62.4]
[1761866911868,4.07575119,183.66,183.65,71.05287919]
[1761866913082,4.07575119,183.66,183.65,87.42529712]
[1761866915063,3.20773898,183.74,183.65,128.26384871]
[1761866915260,3.58337408,183.73,183.71,3.20773898]
[1761866915567,3.77773898,183.77,183.72,0.7]
[1761866915765,3.58248753,183.76,183.72,0.7]
[1761866915964,3.58248753,183.75,183.73,5.44276928]
[1761866916167,3.58248753,183.74,183.73,5.44276928]
[1761866916760,3.58248753,183.76,183.73,5.44276928]
[1761866917085,3.58248753,183.75,183.73,5.44276928]
[1761866917376,3.58248753,183.74,183.73,5.44276928]
[1761866917554,3.58248753,183.76,183.73,5.44276928]
[1761866917759,3.58248753,183.75,183.73,5.44276928]
[1761866917983,3.58248753,183.74,183.73,5.44276928]
[1761866918157,3.58248753,183.76,183.73,5.44276928]
[1761866918888,3.58248753,183.76,183.73,6.14276928]
[1761866921180,3.58248753,183.75,183.74,0.7]
[1761866921487,3.20773898,183.77,183.74,0.7]
[1761866921788,3.20773898,183.77,183.73,5.44276928]
[1761866921789,3.57837056,183.76,183.73,67.14276928]
[1761866922779,3.57837056,183.76,183.73,67.84276928]
[1761866922990,3.57837056,183.76,183.73,67.14276928]
[1761866923167,3.57837056,183.76,183.74,0.7]
[1761866923367,3.57837056,183.76,183.73,67.14276928]
[1761866923682,3.77773898,183.78,183.74,0.7]
[1761866924056,3.77773898,183.78,183.73,70.35050826]
[1761866924057,0.57,183.77,183.73,70.35050826]
[1761866924286,3.77773898,183.77,183.73,67.84276928]
[1761866925177,3.20773898,183.77,183.73,67.84276928]
[1761866925383,3.20773898,183.77,183.74,6.14236564]
[1761866926285,3.20773898,183.77,183.74,5.44236564]
[1761866926588,3.77773898,183.77,183.74,5.44236564]
[1761866927093,4.06428136,183.76,183.74,5.44236564]
[1761866927289,4.06428136,183.75,183.74,5.44236564]
[1761866927590,4.06428136,183.75,183.74,67.14236564]
[1761866927786,4.06428136,183.75,183.74,67.84236564]
[1761866932388,4.06428136,183.75,183.74,61.7]
[1761866932765,4.06428136,183.75,183.74,62.4]
[1761866932965,4.06428136,183.75,183.74,67.84247305]
[1761866933173,3.20773898,183.77,183.74,67.84247305]
[1761866933392,4.05990015,183.76,183.74,67.84247305]
[1761866933690,3.20773898,183.77,183.74,67.84247305]
[1761866933987,4.05986324,183.76,183.74,67.84247305]
[1761866934288,3.20773898,183.77,183.74,67.84247305]
[1761866934491,4.0593616,183.76,183.74,67.84247305]
[1761866934674,9.21906824,183.78,183.74,67.84247305]
[1761866934875,4.0593608,183.77,183.74,67.84247305]
[1761866935073,4.0593608,183.76,183.74,67.84247305]
[1761866935276,9.21906824,183.78,183.74,67.84247305]
[1761866935492,4.05866055,183.77,183.74,67.84247305]
[1761866935701,4.05866055,183.76,183.74,67.84247305]
[1761866935899,9.21906824,183.78,183.74,62.4]
[1761866936093,2.55866055,183.77,183.74,62.4]
[1761866936292,9.21906824,183.78,183.74,62.4]
[1761866937470,9.21906824,183.78,183.74,67.84243219]
[1761866937797,24.36973898,183.78,183.74,67.84243219]
[1761866940699,20.592,183.78,183.75,6.10207457]
[1761866940994,0.2,183.8,183.77,3.20773898]
[1761866941205,0.2,183.8,183.79,3.20773898]
[1761866941497,0.2,183.8,183.79,3.86773898]
[1761866943099,0.2,183.8,183.79,9.30873141]
[1761866948594,4.25693165,183.8,183.79,9.30873141]
[1761866948797,4.25693165,183.8,183.79,6.10099243]
[1761866948992,0.2,183.8,183.79,6.10099243]
[1761866949402,4.25693165,183.8,183.79,6.10099243]
[1761866949580,0.2,183.8,183.79,6.10099243]
[1761866949790,0.2,183.8,183.79,9.30873141]
[1761866950105,4.25693165,183.8,183.79,9.30873141]
[1761866950298,0.2,183.8,183.79,9.30873141]
[1761866950999,0.2,183.8,183.79,71.00873141]
[1761866956626,0.2,183.8,183.79,62.36]
[1761866956801,0.2,183.8,183.79,61.7]
[1761866956985,0.2,183.8,183.79,67.14099243]
[1761866956986,4.25971537,183.8,183.79,67.14099243]
[1761866958596,4.25971537,183.8,183.79,67.83099243]
[1761866959391,0.2,183.8,183.79,71.03873141]
[1761866960106,0.2,183.8,183.79,67.83099243]
[1761866961817,0.2,183.8,183.79,71.03873141]
[1761866964019,20.692,183.85,183.8,61.5]
[1761866964020,0.1,183.85,183.8,61.5]
[1761866964192,4.06340496,183.84,183.82,3.20773898]
[1761866964393,0.1,183.85,183.82,3.89773898]
[1761866964620,4.0625699,183.84,183.82,3.89773898]
[1761866964816,0.1,183.85,183.83,0.69]
[1761866965121,4.06260761,183.84,183.83,6.12980851]
[1761866965617,4.06260761,183.84,183.83,9.33754749]
[1761866966115,0.1,183.85,183.83,9.33754749]
[1761866966306,0.1,183.85,183.84,3.89773898]
[1761866966508,4.16195159,183.85,183.84,65.39773898]
[1761866966900,4.16195159,183.85,183.84,62.19]
[1761866967114,4.16195159,183.85,183.84,67.62951261]
[1761866969308,4.16195159,183.85,183.84,69.67783008]
[1761866970124,4.16195159,183.85,183.84,67.62951261]
[1761866970304,4.16195159,183.85,183.84,69.67783008]
[1761866971627,4.16195159,183.85,183.84,67.62951261]
[1761866973421,4.16195159,183.85,183.84,62.19]
[1761866974526,6.78026906,183.85,183.84,61.5]
[1761866974928,4.16195159,183.85,183.84,61.5]
[1761866975225,6.78026906,183.85,183.84,61.5]
[1761866975713,4.16195159,183.85,183.84,61.5]
[1761866978527,24.75395159,183.85,183.84,61.5]
[1761866983446,26.80226906,183.85,183.84,61.5]
[1761866984522,24.75395159,183.85,183.84,61.5]
[1761866985225,4.16195159,183.85,183.84,67.61951261]
[1761866987639,4.16195159,183.85,183.84,69.66783008]
[1761866992541,4.16195159,183.85,183.84,67.61951261]
[1761866994645,6.78026906,183.85,183.84,61.5]
[1761866994952,6.78026906,183.85,183.82,5.43998585]
[1761866994953,10.41957975,183.85,183.82,5.43998585]
[1761866995148,2.04831747,183.83,183.82,5.43998585]
[1761866995353,4.06195159,183.83,183.82,5.43998585]
[1761866995851,4.06195159,183.83,183.81,61.5]
[1761866995852,4.06195159,183.83,183.81,66.94036243]
[1761866996143,4.06195159,183.82,183.81,67.62036243]
[1761867001950,4.06195159,183.82,183.81,66.94036243]
[1761867002142,4.06195159,183.82,183.81,61.5]
[1761867003331,4.06195159,183.82,183.81,66.94040041]
[1761867004032,4.06195159,183.82,183.81,69.69871788]
[1761867004662,4.06195159,183.82,183.81,76.42459654]
[1761867005048,0.1,183.85,183.81,90.02559757]
[1761867005362,4.07686881,183.84,183.82,0.71]
[1761867005565,4.07686881,183.83,183.82,0.71]
[1761867006133,4.07686881,183.83,183.82,6.15010445]
[1761867006356,4.07686881,183.83,183.82,12.27529073]
[1761867007259,4.078531,183.83,183.82,25.87555185]
[1761867009167,4.078531,183.83,183.82,23.82723438]
[1761867009462,4.078531,183.83,183.82,66.94010445]
[1761867009759,4.078531,183.83,183.82,71.72863545]
[1761867010662,4.078531,183.83,183.82,67.65010445]
[1761867011040,4.078531,183.83,183.82,71.72863545]
[1761867011442,4.078531,183.83,183.82,67.65010445]
[1761867013061,4.078531,183.83,183.82,61.5]
[1761867013362,4.078531,183.83,183.82,66.94010445]
[1761867013953,0.1,183.88,183.84,30.38082769]
[1761867014156,0.1,183.88,183.87,22.64031747]
[1761867014343,0.1,183.88,183.87,24.68863494]
[1761867014544,0.1,183.88,183.87,25.39863494]
[1761867014850,0.1,183.88,183.87,25.53033218]
[1761867015840,0.1,183.88,183.87,30.96895729]
[1761867017153,0.1,183.88,183.87,29.46450233]
[1761867017362,0.1,183.88,183.87,30.96895729]
[1761867018046,0.1,183.88,183.87,31.5128198]
[1761867019444,0.1,183.88,183.87,30.96895729]
[1761867020569,0.1,183.88,183.87,39.70608968]
[1761867023958,0.1,183.89,183.88,22.64031747]
[1761867024268,0.1,183.91,183.89,61.4]
[1761867024467,0.1,183.91,183.89,62.11]
[1761867024657,0.1,183.91,183.9,0.71]
[1761867024857,0.1,183.91,183.9,6.1477379]
[1761867025060,0.1,183.91,183.9,8.19605537]
[1761867025262,0.1,183.91,183.9,11.98573011]
[1761867027181,0.1,183.91,183.9,73.38573011]
[1761867028051,0.1,183.91,183.9,73.9295039]
[1761867028869,1e-08,183.91,183.9,73.9295039]
[1761867029357,1e-08,183.91,183.9,75.0778989]
[1761867032988,4.16133373,183.96,183.93,19.0289784]
[1761867033198,0.1,183.96,183.95,3.19671247]